bitfinex/quotes_SOLUSD_20250616
["timestamp","ask_amount","ask_price","bid_price","bid_amount"]
[1750033401873,5.15810525,152.59,152.58,4.97065372]
[1750033402046,0.28432314,152.59,152.58,4.97065372]
[1750033402456,5.15804019,152.59,152.58,4.97065372]
[1750033402674,5.15807906,152.59,152.58,4.97065372]
[1750033402874,5.15819931,152.59,152.58,4.97065372]
[1750033403184,5.15820157,152.59,152.58,4.97065372]
[1750033403478,5.15812055,152.59,152.58,4.97065372]
[1750033403765,5.15853582,152.59,152.58,4.97065372]
[1750033403936,0.28432314,152.59,152.58,4.97065372]
[1750033404137,5.15853559,152.59,152.58,4.97065372]
[1750033404342,4.87421245,152.59,152.58,4.97065372]
[1750033404667,4.87572135,152.61,152.58,4.97065372]
[1750033404833,0.14216157,152.61,152.6,4.97065372]
[1750033405161,0.28432314,152.61,152.6,4.97065372]
[1750033405349,5.16141017,152.61,152.6,4.97065372]
[1750033405551,5.16139937,152.61,152.6,4.97065372]
[1750033405748,0.28432314,152.61,152.6,4.97065372]
[1750033406579,5.16149343,152.61,152.6,4.97065372]
[1750033406736,5.16149344,152.61,152.6,4.97065372]
[1750033406938,0.28432314,152.61,152.6,4.97065372]
[1750033407163,5.19141742,152.61,152.6,4.97065372]
[1750033407352,5.19131294,152.61,152.6,4.97065372]
[1750033407561,5.1910163,152.61,152.6,4.97065372]
[1750033407746,0.28432314,152.59,152.56,4.97065372]
[1750033407948,18.933972,152.57,152.5,7.8768]
[1750033408148,18.933972,152.55,152.51,4.97065372]
[1750033408474,0.28432314,152.53,152.5,4.97065372]
[1750033408652,0.28432314,152.52,152.51,4.97065372]
[1750033408855,5.1878961,152.52,152.51,4.97065372]
[1750033409346,5.84,152.55,152.51,4.97065372]
[1750033409544,5.84,152.55,152.49,32.55745528]
[1750033409545,6.12432314,152.55,152.54,4.97065372]
[1750033409978,0.28432314,152.53,152.51,4.97065372]
[1750033410167,5.84,152.55,152.52,4.97065372]
[1750033410337,5.84,152.55,152.54,4.97065372]
[1750033410662,10.74455507,152.55,152.54,4.97065372]
[1750033410864,5.84,152.55,152.54,4.97065372]
[1750033411073,10.74474289,152.55,152.54,4.97065372]
[1750033411279,10.74486064,152.55,152.54,4.97065372]
[1750033411443,10.74488299,152.55,152.54,4.97065372]
[1750033411643,10.74488175,152.55,152.54,4.97065372]
[1750033411842,5.84,152.55,152.54,4.97065372]
[1750033412051,10.74470185,152.55,152.54,4.97065372]
[1750033412277,10.74458953,152.55,152.54,4.97065372]
[1750033412647,10.7447955,152.55,152.54,4.97065372]
[1750033412847,10.74477721,152.55,152.54,4.97065372]
[1750033413267,10.74451867,152.55,152.54,4.97065372]
[1750033413573,10.7450137,152.55,152.54,4.97065372]
[1750033413748,4.90489143,152.55,152.54,4.97065372]
[1750033414363,0.14216157,152.59,152.54,4.97065372]
[1750033414683,0.14216157,152.59,152.58,4.97065372]
[1750033414845,5.18960354,152.59,152.58,4.97065372]
[1750033415043,5.18974754,152.59,152.58,4.97065372]
[1750033415355,5.18993101,152.59,152.58,4.97065372]
[1750033415546,5.18968902,152.59,152.58,4.97065372]
[1750033415749,5.04777002,152.59,152.58,4.97065372]
[1750033416072,0.28432314,152.59,152.58,4.97065372]
[1750033416276,5.189896,152.59,152.58,4.97065372]
[1750033416442,5.18997233,152.59,152.58,4.97065372]
[1750033416639,5.19013365,152.59,152.58,4.97065372]
[1750033417056,4.90574987,152.59,152.58,4.97065372]
[1750033417262,4.90617902,152.59,152.58,4.97065372]
[1750033417467,4.90643657,152.59,152.58,4.97065372]
[1750033417651,4.90595184,152.59,152.58,4.97065372]
[1750033417854,4.90583087,152.59,152.58,4.97065372]
[1750033418083,4.90585142,152.59,152.58,4.97065372]
[1750033418367,4.9056343,152.59,152.58,4.97065372]
[1750033418570,4.90581012,152.59,152.58,4.97065372]
[1750033418783,4.90551035,152.59,152.58,4.97065372]
[1750033418949,4.90564568,152.59,152.58,4.97065372]
[1750033419145,0.28432314,152.6,152.53,8.1025]
[1750033419365,0.28432314,152.6,152.57,4.97065372]
[1750033419366,4.9048872,152.59,152.57,4.97065372]
[1750033419568,4.90490033,152.58,152.53,34.1025]
[1750033419765,0.28432314,152.6,152.57,4.97065372]
[1750033419952,0.28432314,152.59,152.58,4.97065372]
[1750033420153,5.18904374,152.59,152.58,4.97065372]
[1750033420376,5.18928499,152.59,152.58,4.97065372]
[1750033420592,0.28432314,152.59,152.58,4.97065372]
[1750033420878,5.18895637,152.59,152.58,4.97065372]
[1750033421383,5.18880277,152.59,152.58,4.97065372]
[1750033421587,5.18816507,152.59,152.53,26.0]
[1750033421886,0.28432314,152.57,152.56,4.97065372]
[1750033422266,5.18730878,152.57,152.56,4.97065372]
[1750033422592,0.28432314,152.57,152.56,4.97065372]
[1750033422761,5.18605925,152.57,152.56,4.97065372]
[1750033422965,4.90254806,152.57,152.56,4.97065372]
[1750033423270,4.90197855,152.57,152.56,4.97065372]
[1750033423482,4.9019955,152.57,152.56,4.97065372]
[1750033423786,4.90204291,152.57,152.56,4.97065372]
[1750033423954,4.90177532,152.57,152.56,4.97065372]
[1750033424278,4.90114976,152.57,152.56,4.97065372]
[1750033424484,0.28432314,152.6,152.56,4.97065372]
[1750033424663,5.17991347,152.59,152.58,4.97065372]
[1750033424866,0.28432314,152.59,152.58,4.97065372]
[1750033425064,10.07496383,152.59,152.58,4.97065372]
[1750033425261,9.79047812,152.59,152.58,4.97065372]
[1750033425472,9.79085708,152.59,152.58,4.97065372]
[1750033425673,9.79101944,152.59,152.58,4.97065372]
[1750033425974,9.79089528,152.59,152.58,4.97065372]
[1750033426171,4.89520259,152.59,152.58,4.97065372]
[1750033426378,9.79092492,152.59,152.58,4.97065372]
[1750033426680,9.79138982,152.59,152.58,4.97065372]
[1750033427083,4.89520259,152.59,152.58,4.97065372]
[1750033427290,9.79156973,152.59,152.58,4.97065372]
[1750033427469,4.89520259,152.59,152.58,4.97065372]
[1750033427666,9.79148917,152.59,152.58,4.97065372]
[1750033427982,9.79076617,152.59,152.58,4.97065372]
[1750033428185,9.79075917,152.59,152.58,4.97065372]
[1750033428482,9.79015344,152.59,152.58,4.97065372]
[1750033428782,9.79014577,152.59,152.58,4.97065372]
[1750033429086,9.79011613,152.59,152.58,4.97065372]
[1750033429283,9.79023255,152.59,152.58,4.97065372]
[1750033429875,4.89520259,152.59,152.58,4.97065372]
[1750033430183,9.79026361,152.59,152.58,4.97065372]
[1750033430380,9.79027711,152.59,152.58,4.97065372]
[1750033430684,9.78933602,152.59,152.58,4.97065372]
[1750033430889,9.78877314,152.59,152.58,4.97065372]
[1750033431095,9.78846817,152.59,152.58,4.97065372]
[1750033431388,4.89520259,152.59,152.58,4.97065372]
[1750033432787,9.78813368,152.59,152.58,4.97065372]
[1750033432989,9.78827858,152.59,152.58,4.97065372]
[1750033433169,9.78846411,152.59,152.58,4.97065372]
[1750033433793,9.78846411,152.59,152.58,37.52459263]
[1750033433981,4.89520259,152.59,152.58,37.52459263]
[1750033436771,4.89520259,152.59,152.58,150.49301774]
[1750033436974,4.89520259,152.59,152.58,163.57747146]
[1750033437173,4.89520259,152.59,152.58,173.57747146]
[1750033437579,4.89520259,152.59,152.58,163.57747146]
[1750033437902,4.89520259,152.59,152.58,173.57747146]
[1750033439502,4.89520259,152.59,152.58,158.60681774]
[1750033439799,4.89520259,152.59,152.58,168.60681774]
[1750033440193,4.89520259,152.59,152.58,148.51738777]
[1750033440401,4.89520259,152.59,152.58,153.48804149]
[1750033440568,4.89520259,152.59,152.58,45.63839263]
[1750033441300,4.89520259,152.59,152.58,39.08445372]
[1750033441502,4.89520259,152.59,152.58,13.08445372]
[1750033441669,4.89520259,152.59,152.58,19.63839263]
[1750033441882,4.89520259,152.59,152.58,45.63839263]
[1750033442089,4.89520259,152.59,152.58,19.63839263]
[1750033443596,4.89520259,152.59,152.58,30.97065372]
[1750033443916,4.89520259,152.59,152.55,4.97065372]
[1750033444112,4.89520259,152.59,152.53,89.2]
[1750033444113,4.89520259,152.59,152.58,4.97065372]
[1750033444684,9.78563883,152.59,152.58,4.97065372]
[1750033444886,4.89520259,152.59,152.58,4.97065372]
[1750033445112,9.79438357,152.59,152.56,26.0]
[1750033445282,4.89520259,152.59,152.58,4.97065372]
[1750033445483,9.79230933,152.59,152.58,4.97065372]
[1750033445684,4.89520259,152.59,152.58,4.97065372]
[1750033445912,9.79252518,152.59,152.58,4.97065372]
[1750033446501,9.79209824,152.59,152.58,4.97065372]
[1750033446704,9.79208984,152.59,152.58,4.97065372]
[1750033446902,4.89520259,152.59,152.56,26.0]
[1750033447209,4.89520259,152.59,152.58,4.97065372]
[1750033447384,9.79198931,152.59,152.58,4.97065372]
[1750033447587,9.79201347,152.59,152.58,4.97065372]
[1750033447790,4.89520259,152.59,152.58,4.97065372]
[1750033447989,9.79080417,152.59,152.58,4.97065372]
[1750033448214,4.89520259,152.59,152.58,4.97065372]
[1750033448418,9.79082308,152.59,152.58,4.97065372]
[1750033448784,9.79029621,152.59,152.58,4.97065372]
[1750033448982,4.89520259,152.59,152.58,4.97065372]
[1750033449218,9.7903118,152.59,152.58,4.97065372]
[1750033449826,4.89520259,152.59,152.58,4.97065372]
[1750033450027,9.78874329,152.59,152.58,4.97065372]
[1750033450238,9.78863791,152.59,152.58,4.97065372]
[1750033451041,9.78849507,152.59,152.58,4.97065372]
[1750033451234,9.78847986,152.59,152.58,4.97065372]
[1750033451535,9.78801461,152.59,152.56,4.97065372]
[1750033451707,4.89520259,152.59,152.56,4.97065372]
[1750033451914,4.89342618,152.58,152.55,4.97065372]
[1750033452114,4.89314655,152.57,152.55,4.97065372]
[1750033452322,4.89314359,152.56,152.55,4.97065372]
[1750033452524,4.89300679,152.56,152.55,4.97065372]
[1750033452736,4.89304712,152.56,152.55,4.97065372]
[1750033452937,4.89308143,152.56,152.55,4.97065372]
[1750033453171,4.89383531,152.56,152.55,4.97065372]
[1750033453311,4.89314525,152.56,152.55,4.97065372]
[1750033453518,4.89319216,152.56,152.55,4.97065372]
[1750033453717,4.89520259,152.59,152.55,9.94130744]
[1750033453936,4.89520259,152.59,152.58,4.97065372]
[1750033454232,9.79094054,152.59,152.54,26.0]
[1750033454540,4.89520259,152.59,152.58,4.97065372]
[1750033454941,9.79109018,152.59,152.58,4.97065372]
[1750033455248,16.56148013,152.59,152.54,4.97065372]
[1750033455542,0.28432314,152.57,152.54,4.97065372]
[1750033455721,5.17910517,152.56,152.55,4.97065372]
[1750033455924,4.89494228,152.56,152.55,4.97065372]
[1750033456448,4.8952426,152.56,152.53,4.97065372]
[1750033456753,4.89444508,152.55,152.53,4.97065372]
[1750033456935,0.28432314,152.57,152.53,4.97065372]
[1750033457147,4.89450556,152.56,152.53,4.97065372]
[1750033457325,4.89441483,152.55,152.53,4.97065372]
[1750033457523,5.25497686,152.57,152.52,4.97065372]
[1750033457756,0.28432314,152.55,152.52,4.97065372]
[1750033457914,4.89415611,152.54,152.52,4.97065372]
[1750033458119,4.89415313,152.53,152.5,26.0]
[1750033458322,0.28432314,152.55,152.52,4.97065372]
[1750033458618,4.89442054,152.54,152.53,4.97065372]
[1750033458855,4.8942331,152.54,152.53,4.97065372]
[1750033459038,0.28432314,152.55,152.53,4.97065372]
[1750033459358,4.89415299,152.54,152.53,4.97065372]
[1750033459567,0.28432314,152.53,152.46,7.8044]
[1750033459852,4.89324847,152.52,152.49,4.97065372]
[1750033460053,4.89322961,152.51,152.43,25.20994173]
[1750033460239,0.28432314,152.53,152.49,4.97065372]
[1750033460240,4.89311313,152.5,152.49,4.97065372]
[1750033460420,4.89334409,152.5,152.49,4.97065372]
[1750033460621,4.89344752,152.5,152.49,4.97065372]
[1750033460821,1.78622314,152.53,152.49,4.97065372]
[1750033461137,1.78622314,152.53,152.52,4.97065372]
[1750033461333,1.78622314,152.53,152.51,4.97065372]
[1750033461546,4.89375178,152.52,152.51,4.97065372]
[1750033461722,1.78622314,152.53,152.51,4.97065372]
[1750033461923,4.89360301,152.52,152.51,4.97065372]
[1750033462122,1.78622314,152.53,152.51,4.97065372]
[1750033462855,26.96,152.55,152.52,4.97065372]
[1750033463030,0.28432314,152.54,152.53,4.97065372]
[1750033463350,4.89551958,152.54,152.53,4.97065372]
[1750033463554,4.89562679,152.54,152.53,4.97065372]
[1750033463754,4.89564239,152.54,152.53,4.97065372]
[1750033463959,4.89681772,152.54,152.53,4.97065372]
[1750033464130,4.89681178,152.54,152.53,4.97065372]
[1750033464323,4.89716024,152.54,152.53,4.97065372]
[1750033464526,26.96,152.55,152.53,4.97065372]
[1750033465132,4.8972663,152.54,152.53,4.97065372]
[1750033465459,4.89685743,152.54,152.53,4.97065372]
[1750033465823,4.89781366,152.54,152.47,6.55854857]
[1750033466017,0.28432314,152.56,152.53,4.97065372]
[1750033466224,4.89798043,152.55,152.53,4.97065372]
[1750033466531,0.28432314,152.56,152.53,4.97065372]
[1750033466532,4.89785371,152.54,152.53,4.97065372]
[1750033466732,4.89788778,152.54,152.53,4.97065372]
[1750033466945,0.28432314,152.56,152.53,4.97065372]
[1750033467135,4.8988297,152.55,152.53,4.97065372]
[1750033467339,4.89873541,152.54,152.53,4.97065372]
[1750033467538,4.89894559,152.54,152.53,4.97065372]
[1750033468055,0.28432314,152.56,152.53,4.97065372]
[1750033468360,4.89925729,152.55,152.53,4.97065372]
[1750033468553,4.89920824,152.54,152.53,4.97065372]
[1750033468858,4.89927292,152.54,152.53,4.97065372]
[1750033469036,0.28432314,152.56,152.53,4.97065372]
[1750033469237,4.90060918,152.55,152.48,6.55818745]
[1750033469452,4.900602,152.54,152.53,4.97065372]
[1750033469647,4.90105477,152.54,152.53,4.97065372]
[1750033469834,4.9010722,152.54,152.53,4.97065372]
[1750033470044,4.90100737,152.54,152.53,4.97065372]
[1750033470247,0.28432314,152.56,152.53,4.97065372]
[1750033470433,4.90129178,152.55,152.53,4.97065372]
[1750033470662,4.90132463,152.54,152.53,4.97065372]
[1750033470845,4.90139308,152.54,152.53,4.97065372]
[1750033471162,4.90131236,152.54,152.53,4.97065372]
[1750033471537,0.28432314,152.56,152.52,4.97065372]
[1750033471735,4.90124635,152.55,152.52,4.97065372]
[1750033471923,4.90106753,152.54,152.52,4.97065372]
[1750033472131,4.90089916,152.53,152.52,4.97065372]
[1750033472331,0.28432314,152.56,152.52,4.97065372]
[1750033472532,4.90118794,152.55,152.52,4.97065372]
[1750033472833,4.90141156,152.54,152.5,26.0]
[1750033473134,4.90141156,152.53,152.5,26.0]
[1750033473338,4.90141156,152.52,152.5,26.0]
[1750033473571,4.90125835,152.51,152.5,26.0]
[1750033473757,4.90125548,152.51,152.5,26.0]
[1750033473941,4.90125562,152.51,152.5,26.0]
[1750033474137,4.90119988,152.51,152.5,26.0]
[1750033474340,4.90133952,152.51,152.5,30.97065372]
[1750033474540,0.28432314,152.56,152.5,30.97065372]
[1750033474766,4.90134864,152.55,152.53,4.97065372]
[1750033474963,0.28432314,152.56,152.53,4.97065372]
[1750033475147,4.90148098,152.55,152.53,4.97065372]
[1750033475350,4.90119506,152.54,152.53,4.97065372]
[1750033475552,0.28432314,152.56,152.53,4.97065372]
[1750033475861,0.28432314,152.56,152.52,4.97065372]
[1750033475862,4.90116808,152.55,152.52,4.97065372]
[1750033476068,4.90091179,152.54,152.52,4.97065372]
[1750033476245,4.90091179,152.53,152.52,4.97065372]
[1750033476429,0.28432314,152.54,152.47,89.2]
[1750033476742,4.97065372,152.55,152.49,4.97065372]
[1750033476743,0.28432314,152.52,152.49,4.97065372]
[1750033476931,4.90024422,152.51,152.48,4.97065372]
[1750033477135,0.28432314,152.52,152.48,4.97065372]
[1750033477334,0.28432314,152.52,152.49,4.97065372]
[1750033477637,4.9001986,152.51,152.49,4.97065372]
[1750033477857,4.90015392,152.5,152.49,4.97065372]
[1750033478059,0.28432314,152.52,152.49,4.97065372]
[1750033478262,4.9001569,152.51,152.49,4.97065372]
[1750033478465,4.90010716,152.5,152.49,4.97065372]
[1750033478657,4.90040328,152.5,152.49,4.97065372]
[1750033478860,0.28432314,152.52,152.49,4.97065372]
[1750033479047,0.28432314,152.52,152.5,4.97065372]
[1750033479456,4.90220214,152.51,152.5,4.97065372]
[1750033479647,4.90220421,152.51,152.5,4.97065372]
[1750033479848,4.90222008,152.51,152.5,4.97065372]
[1750033480051,0.28432314,152.52,152.5,4.97065372]
[1750033480269,4.90228744,152.51,152.5,4.97065372]
[1750033480435,0.28432314,152.52,152.5,4.97065372]
[1750033480847,4.9013357,152.51,152.5,4.97065372]
[1750033481043,26.96,152.53,152.5,4.97065372]
[1750033481250,26.96,152.53,152.52,4.97065372]
[1750033481454,0.28432314,152.55,152.52,4.97065372]
[1750033481632,1.5516,152.57,152.54,4.97065372]
[1750033481856,0.28432314,152.55,152.54,4.97065372]
[1750033482183,23.54485145,152.59,152.54,4.97065372]
[1750033482478,4.89520259,152.59,152.58,4.97065372]
[1750033482636,10.08205481,152.59,152.58,4.97065372]
[1750033482835,9.79772619,152.59,152.57,4.97065372]
[1750033483036,4.89520259,152.59,152.57,4.97065372]
[1750033483259,4.90263325,152.58,152.57,4.97065372]
[1750033483471,4.89520259,152.59,152.57,4.97065372]
[1750033483680,5.18697345,152.58,152.57,4.97065372]
[1750033483974,0.28432314,152.58,152.57,4.97065372]
[1750033484461,5.1864125,152.58,152.57,4.97065372]
[1750033484657,5.18644772,152.58,152.57,4.97065372]
[1750033484960,5.18541306,152.58,152.57,4.97065372]
[1750033485163,0.28432314,152.58,152.57,4.97065372]
[1750033485334,5.18532955,152.58,152.57,4.97065372]
[1750033485534,5.18542283,152.58,152.57,4.97065372]
[1750033485764,0.28432314,152.58,152.57,4.97065372]
[1750033486153,5.18495745,152.58,152.57,4.97065372]
[1750033486363,5.18527323,152.58,152.57,4.97065372]
[1750033486549,5.18526343,152.58,152.56,4.97065372]
[1750033486752,4.90131347,152.57,152.56,4.97065372]
[1750033486933,0.28432314,152.58,152.56,4.97065372]
[1750033487139,4.90173438,152.57,152.56,4.97065372]
[1750033487452,4.90173217,152.57,152.56,4.97065372]
[1750033487658,4.90199605,152.57,152.56,4.97065372]
[1750033487853,4.90201158,152.57,152.56,4.97065372]
[1750033488034,0.28432314,152.58,152.56,4.97065372]
[1750033488434,4.90201274,152.57,152.56,4.97065372]
[1750033488632,4.9022086,152.57,152.56,4.97065372]
[1750033488857,4.90200976,152.57,152.56,4.97065372]
[1750033489369,0.28432314,152.58,152.55,4.97065372]
[1750033489557,4.90174326,152.57,152.55,4.97065372]
[1750033489870,0.28432314,152.58,152.56,4.97065372]
[1750033490071,0.28432314,152.58,152.57,4.97065372]
[1750033490243,5.18591208,152.58,152.57,4.97065372]
[1750033490439,0.28432314,152.58,152.56,4.97065372]
[1750033491065,4.90109711,152.57,152.56,4.97065372]
[1750033491248,0.28432314,152.58,152.56,4.97065372]
[1750033491938,4.90037609,152.57,152.56,4.97065372]
[1750033492461,4.90034525,152.57,152.56,4.97065372]
[1750033493167,4.90007796,152.57,152.56,4.97065372]
[1750033493461,0.28432314,152.58,152.56,4.97065372]
[1750033493658,4.90008094,152.57,152.53,26.0]
[1750033493835,0.28432314,152.58,152.53,26.0]
[1750033494038,4.90039433,152.57,152.55,4.97065372]
[1750033494248,0.28432314,152.58,152.55,4.97065372]
[1750033494438,4.90021628,152.57,152.55,4.97065372]
[1750033494657,4.90024597,152.56,152.55,4.97065372]
[1750033494965,0.28432314,152.58,152.55,4.97065372]
[1750033495169,4.89972729,152.57,152.55,4.97065372]
[1750033495344,0.28432314,152.58,152.55,4.97065372]
[1750033495544,4.90024854,152.57,152.55,4.97065372]
[1750033495739,4.88008159,152.56,152.53,26.0]
[1750033495940,0.28432314,152.58,152.55,4.97065372]
[1750033496157,4.87995483,152.57,152.53,26.0]
[1750033496365,4.87994593,152.56,152.53,26.0]
[1750033496570,0.28432314,152.58,152.55,4.97065372]
[1750033496947,4.87949287,152.57,152.55,4.97065372]
[1750033497268,0.28432314,152.58,152.56,4.97065372]
[1750033497775,4.87969999,152.57,152.56,4.97065372]
[1750033498065,4.87942573,152.57,152.56,4.97065372]
[1750033498272,0.28432314,152.58,152.56,4.97065372]
[1750033498474,4.87890491,152.57,152.56,4.97065372]
[1750033498972,4.87875433,152.57,152.56,4.97065372]
[1750033499344,4.87875433,152.57,152.5,95.75704959]
[1750033499345,0.28432314,152.56,152.5,89.2]
[1750033499550,4.87757824,152.55,152.52,4.97065372]
[1750033499759,4.87750506,152.54,152.52,4.97065372]
[1750033499961,4.87742669,152.53,152.52,4.97065372]
[1750033500155,4.87745443,152.53,152.52,4.97065372]
[1750033500363,27.24432314,152.56,152.52,4.97065372]
[1750033500673,4.8772651,152.55,152.51,4.97065372]
[1750033500869,4.87839437,152.54,152.51,4.97065372]
[1750033501069,27.24432314,152.56,152.51,4.97065372]
[1750033501370,27.24432314,152.56,152.52,4.97065372]
[1750033501743,4.87852079,152.55,152.52,4.97065372]
[1750033501944,4.87895995,152.54,152.52,4.97065372]
[1750033502153,27.24432314,152.56,152.52,4.97065372]
[1750033502353,4.87889033,152.55,152.52,4.97065372]
[1750033502541,4.87895536,152.54,152.52,4.97065372]
[1750033502760,27.24432314,152.56,152.52,4.97065372]
[1750033502962,4.87895833,152.55,152.52,4.97065372]
[1750033503265,4.87910097,152.54,152.53,4.97065372]
[1750033503481,4.87880092,152.54,152.53,4.97065372]
[1750033503774,4.87867125,152.54,152.53,4.97065372]
[1750033503952,4.87879182,152.54,152.53,4.97065372]
[1750033504150,4.87883202,152.54,152.53,4.97065372]
[1750033504553,4.87876497,152.54,152.53,4.97065372]
[1750033504761,4.8789046,152.54,152.52,4.97065372]
[1750033505050,4.87880137,152.53,152.52,4.97065372]
[1750033505278,27.24432314,152.56,152.52,4.97065372]
[1750033505476,4.8787142,152.55,152.52,4.97065372]
[1750033505654,4.87887725,152.54,152.52,4.97065372]
[1750033505848,27.24432314,152.56,152.52,4.97065372]
[1750033505849,4.87907517,152.53,152.52,4.97065372]
[1750033506171,4.87907222,152.53,152.52,4.97065372]
[1750033506359,27.24432314,152.56,152.52,4.97065372]
[1750033506559,4.87908187,152.55,152.52,4.97065372]
[1750033506781,4.87908187,152.54,152.52,4.97065372]
[1750033506947,4.87908187,152.53,152.52,4.97065372]
[1750033507153,4.87873423,152.53,152.52,4.97065372]
[1750033507474,4.87849296,152.53,152.52,4.97065372]
[1750033507864,4.8786136,152.53,152.52,4.97065372]
[1750033508266,37.96004947,152.56,152.52,4.97065372]
[1750033508466,4.87862249,152.55,152.52,4.97065372]
[1750033508664,4.87862249,152.54,152.52,4.97065372]
[1750033508845,4.87862249,152.53,152.52,4.97065372]
[1750033509050,4.87883949,152.53,152.52,4.97065372]
[1750033509273,37.96004947,152.56,152.52,4.97065372]
[1750033509848,4.87862249,152.55,152.52,4.97065372]
[1750033510074,4.87868161,152.54,152.52,4.97065372]
[1750033510279,4.87868161,152.53,152.52,4.97065372]
[1750033510452,4.87868161,152.55,152.52,4.97065372]
[1750033510771,4.87977854,152.58,152.54,30.97065372]
[1750033511066,4.89520259,152.59,152.57,4.97065372]
[1750033511270,4.89520259,152.59,152.58,4.97065372]
[1750033511662,9.77713742,152.59,152.58,4.97065372]
[1750033511858,4.89520259,152.59,152.58,4.97065372]
[1750033515178,4.89520259,152.59,152.54,26.0]
[1750033515376,4.89520259,152.59,152.58,4.97065372]
[1750033528305,4.89520259,152.59,152.58,30.97065372]
[1750033533215,4.89520259,152.59,152.58,11.52459263]
[1750033538696,4.89520259,152.59,152.58,4.97065372]
[1750033538895,4.89520259,152.59,152.55,4.97065372]
[1750033539203,4.89520259,152.59,152.56,4.97065372]
[1750033540510,4.89520259,152.59,152.58,4.97065372]
[1750033545302,4.89520259,152.59,152.58,38.27414149]
[1750033545503,18.41085728,152.67,152.66,4.97065372]
[1750033545702,18.55301885,152.67,152.64,4.97065372]
[1750033545903,0.28432314,152.66,152.64,4.97065372]
[1750033546094,0.14216157,152.66,152.64,4.97065372]
[1750033546635,0.28432314,152.66,152.64,4.97065372]
[1750033548926,0.28432314,152.66,152.61,26.0]
[1750033549135,0.28432314,152.66,152.63,4.97065372]
[1750033549496,0.28432314,152.66,152.62,4.97065372]
[1750033554126,0.28432314,152.66,152.64,4.97065372]
[1750033555005,18.41085728,152.67,152.65,4.97065372]
[1750033555903,18.41085728,152.67,152.66,4.97065372]
[1750033558001,18.41085728,152.67,152.62,26.0]
[1750033558429,18.41085728,152.67,152.64,4.97065372]
[1750033559219,18.41085728,152.67,152.62,26.0]
[1750033559435,0.28432314,152.66,152.64,4.97065372]
[1750033561755,18.41085728,152.67,152.65,4.97065372]
[1750033561916,18.41085728,152.67,152.66,4.97065372]
[1750033564640,147.0,152.73,152.66,4.97065372]
[1750033564845,0.14216157,152.72,152.71,4.97065372]
[1750033565143,0.14216157,152.72,152.7,4.97065372]
[1750033566021,0.14216157,152.72,152.71,4.97065372]
[1750033566419,0.28432314,152.7,152.63,26.0]
[1750033566622,5.25497686,152.7,152.65,4.97065372]
[1750033566942,32.15497686,152.7,152.66,4.97065372]
[1750033567449,27.18432314,152.7,152.66,4.97065372]
[1750033568458,0.28432314,152.72,152.69,4.97065372]
[1750033571058,27.18432314,152.73,152.7,4.97065372]
[1750033571230,27.18432314,152.73,152.69,4.97065372]
[1750033572133,0.28432314,152.71,152.65,26.0]
[1750033572331,0.28432314,152.71,152.68,4.97065372]
[1750033573439,31.87065372,152.73,152.7,4.97065372]
[1750033573440,26.9,152.73,152.7,4.97065372]
[1750033573638,0.28432314,152.72,152.7,4.97065372]
[1750033576161,0.28432314,152.73,152.7,4.97065372]
[1750033576348,27.18432314,152.73,152.69,4.97065372]
[1750033577740,27.18432314,152.73,152.7,4.97065372]
[1750033578131,5.82,152.74,152.72,4.97065372]
[1750033578336,5.82,152.74,152.73,4.97065372]
[1750033584147,16.86043044,152.77,152.73,16.48880956]
[1750033584370,16.86043044,152.77,152.76,30.97065372]
[1750033584539,7.4229,152.82,152.76,30.97065372]
[1750033584540,5.82,152.82,152.77,6.54578778]
[1750033584741,5.82,152.82,152.81,4.97065372]
[1750033586170,5.82,152.82,152.76,138.11164979]
[1750033586342,5.82,152.82,152.81,4.97065372]
[1750033587770,5.8,152.89,152.81,35.94130744]
[1750033587964,5.8,152.89,152.88,4.97065372]
[1750033591175,5.8,152.89,152.88,30.97065372]
[1750033591978,5.8,152.96,152.88,37.51173168]
[1750033592153,5.8,152.96,152.94,4.97065372]
[1750033592554,0.28432314,152.95,152.94,4.97065372]
[1750033592757,5.8,152.96,152.94,4.97065372]
[1750033593969,5.8,152.96,152.95,4.97065372]
[1750033595283,5.8,152.96,152.91,11.5103665]
[1750033595451,5.8,152.96,152.95,4.97065372]
[1750033595852,5.8,152.96,152.91,4.97065372]
[1750033596166,5.8,152.96,152.95,4.97065372]
[1750033598693,7.3035,153.02,152.95,4.97065372]
[1750033598854,7.3035,153.02,153.0,4.97065372]
[1750033599363,5.8,153.02,153.01,4.97065372]
[1750033599776,26.86,153.08,153.01,4.97065372]
[1750033600004,26.0,153.04,152.94,7.9183]
[1750033600201,0.14216157,153.0,152.96,4.97065372]
[1750033600507,0.28432314,153.02,152.98,4.97065372]
[1750033600996,5.25497686,153.02,152.94,32.3669]
[1750033601180,5.25497686,153.02,152.98,4.97065372]
[1750033601990,5.25497686,153.02,152.97,4.97065372]
[1750033602898,8.33830145,153.02,152.97,8.05397831]
[1750033603194,0.28432314,153.02,152.98,8.05397831]
[1750033604474,0.28432314,153.02,152.94,32.3669]
[1750033604774,0.28432314,153.02,152.98,8.05397831]